[Event "Turkey IS Bank Super League 2017"]
[Site "Darica-Kocaeli"]
[Date "2017.08.03"]
[Round "9"]
[White "Gundogan, Sinem Cagla"]
[Black "Duran, Esma Doga"]
[Result "1-0"]
[ECO "C02"]
[WhiteElo "2000"]
[BlackElo "1939"]
[Annotator "NA"]
[PlyCount "67"]
[EventType "team-tourn"]
[EventCountry "TUR"]
[SourceTitle "playchess.com"]
[Source "ChessBase"]
[SourceQuality "1"]
[TimeControl "40/5400+30:1800+30"]

1. e4 {[%emt 0:00:30]} e6 {[%emt 0:02:00]} 2. d4 {[%emt 0:00:30]} d5 {[%emt 0:00:00]} 3. Bd3 {[%emt 0:00:00]} Nf6 {[%emt 0:00:00]} 4. e5 {[%emt 0:03:00]} Nfd7 {[%emt 0:00:30]} 5. Nf3 {[%emt 0:00:30]} c5 {[%emt 0:01:30]} 6. c3 {[%emt 0:01:30]} Nc6 {[%emt 0:01:30]} 7. O-O {[%emt 0:07:30]} Qb6 {[%emt 0:03:30] LiveBook: 7 Games} 8. dxc5 {[%emt 0:05:30]} Bxc5 {[%emt 0:13:30]} 9. b4 {[%emt 0:00:30]} Be7 {[%emt 0:00:30]} 10. Re1 {[%emt 0:04:30] [%clk 1:11]} a5 {[%emt 0:21:30]} 11. b5 {[%emt 0:02:30]} Ncb8 {[%emt 0:03:30]} 12. a4 {[%emt 0:02:30]} Nc5 {[%emt 0:00:30]} 13. Bc2 {[%emt 0:00:30]} Nbd7 {[%emt 0:02:30]} 14. Na3 {[%emt 0:10:30]} Qd8 {[%emt 0:03:30]} 15. Nd4 {[%emt 0:03:30]} Nf8 $16 {[%emt 0:19:30]} 16. Qg4 {[%emt 0:09:30]} Ng6 {[%emt 0:00:30]} 17. f4 {[%emt 0:04:30]} O-O {[%emt 0:02:30]} 18. Be3 {[%emt 0:07:30]} f5 {[%emt 0:15:02]} 19. Qe2 {[%emt 0:06:30]} b6 {[%emt 0:06:49]} 20. c4 {[%emt 0:09:18]} Bb7 {[%emt 0:00:30]} 21. Rad1 {[%emt 0:00:30]} Qc8 {[%emt 0:00:30]} 22. cxd5 {[%emt 0:00:30]} exd5 {[%emt 0:00:30]} 23. Nb1 {[%emt 0:00:30]} Ne4 {[%emt 0:00:10]} 24. Bxe4 {[%emt 0:07:41]} dxe4 {[%emt 0:00:02]} 25. Qa2+ {[%emt 0:00:44]} Rf7 {[%emt 0:01:04]} 26. Rc1 {[%emt 0:02:13]} Bc5 {[%emt 0:00:48]} 27. Red1 {[%emt 0:04:00]} Qe8 {[%emt 0:00:35]} 28. Rxc5 {[%emt 0:04:41]} bxc5 {[%emt 0:00:30]} 29. Nxf5 {[%emt 0:00:00]} Qf8 {[%emt 0:00:44]} 30. Nd6 {[%emt 0:00:24]} Rb8 {[%emt 0:00:20]} 31. Bxc5 {[%emt 0:01:23]} Ne7 {[%emt 0:00:37]} 32. Nxf7 {[%emt 0:00:57]} Qxf7 {[%emt 0:00:30]} 33. Qxf7+ {[%emt 0:00:30]} Kxf7 {[%emt 0:00:00]} 34. Rd7 {[%emt 0:00:00]} 1-0

[Event "Turkey IS Bank Super League 2017"]
[Site "Darica-Kocaeli"]
[Date "2017.08.03"]
[Round "9"]
[White "Ozbay, Ece"]
[Black "Yassibag, Ipek Asli"]
[Result "1-0"]
[ECO "B01"]
[WhiteElo "1970"]
[BlackElo "1880"]
[Annotator "NA"]
[PlyCount "61"]
[EventType "team-tourn"]
[EventCountry "TUR"]
[SourceTitle "playchess.com"]
[Source "ChessBase"]
[SourceQuality "1"]
[TimeControl "40/5400+30:1800+30"]

1. e4 {[%emt 0:01:30]} d5 {[%emt 0:01:00]} 2. exd5 {[%emt 0:00:00]} Nf6 {[%emt 0:00:30]} 3. Bb5+ {[%emt 0:00:00]} Bd7 {[%emt 0:00:30]} 4. Bc4 {[%emt 0:00:00]} Bg4 {[%emt 0:02:30]} 5. f3 {[%emt 0:00:00]} Bf5 {[%emt 0:00:30]} 6. g4 {[%emt 0:00:30] B01: Scandinavian Defence} (6. Nc3 Nbd7 7. g4 Nb6 8. b3 Bc8 9. Bb2 Nfxd5 10. Nxd5 Nxd5 11. Qe2 e6 12. O-O-O b6 13. Nh3 Bb7 14. f4 Bd6 15. f5 Qe7 16. Bxg7 {1-0 (40) Caruana,F (2795)-Akobian,V (2615) Saint Louis 2016}) 6... Bg6 {[%emt 0:00:30]} 7. Nc3 {[%emt 0:00:30]} Nbd7 {[%emt 0:03:30]} 8. f4 {[%emt 0:01:30]} Be4 {[%emt 0:06:30]} 9. Nf3 $146 {[%emt 0:10:30]} ({Predecessor:} 9. Nxe4 Nxe4 10. Qf3 Nd6 11. Bb3 a5 12. a3 h5 13. g5 g6 {1-0 (52) Oleksienko,M (2509)-Ragot,N (2203) Guingamp 2006}) 9... Nb6 {[%emt 0:05:30]} 10. Bb5+ {[%emt 0:12:30]} c6 {[%emt 0:02:30]} 11. dxc6 {[%emt 0:00:30]} Bxc6 {[%emt 0:02:30] [%clk 1:10]} 12. Bxc6+ {[%emt 0:07:30]} bxc6 {[%emt 0:00:30]} 13. Ne5 {[%emt 0:00:00]} Qc7 {[%emt 0:04:30]} 14. Qf3 {[%emt 0:11:00]} Rc8 {[%emt 0:04:30]} 15. b3 {[%emt 0:09:30]} e6 {[%emt 0:01:30]} 16. Bb2 {[%emt 0:00:30]} Bd6 {[%emt 0:04:30]} 17. Ne2 {[%emt 0:01:30]} Nfd5 {[%emt 0:02:30]} 18. Nd3 {[%emt 0:05:30]} f6 $18 {[%emt 0:06:30]} (18... O-O $142 19. c4 Nb4) 19. O-O {[%emt 0:03:30]} c5 {[%emt 0:01:30]} 20. c4 {[%emt 0:01:30]} Ne7 {[%emt 0:05:30]} 21. Ng3 {[%emt 0:00:30]} Ng6 {[%emt 0:03:30]} 22. Qe4 {[%emt 0:05:30]} Qe7 {[%emt 0:05:30]} 23. f5 {[%emt 0:07:30]} Nf8 {[%emt 0:03:30]} 24. fxe6 {[%emt 0:00:30]} Bxg3 {[%emt 0:01:30]} 25. hxg3 {[%emt 0:00:30]} Nxe6 {[%emt 0:06:30]} 26. Rae1 {[%emt 0:00:50]} Kd7 {[%emt 0:01:30]} 27. Re3 {[%emt 0:11:47]} Qd6 {[%emt 0:22:38]} 28. Qf5 {[%emt 0:03:59]} g6 {[%emt 0:01:26]} 29. Qxf6 {[%emt 0:00:42]} Rhf8 {[%emt 0:00:02]} 30. Ne5+ Ke8 {[%emt 0:00:27]} 31. Nf7 {[%emt 0:00:59]} 1-0

[Event "Turkey IS Bank Super League 2017"]
[Site "Darica-Kocaeli"]
[Date "2017.08.03"]
[Round "9"]
[White "Sumer, Gun"]
[Black "Secer, Ata"]
[Result "0-1"]
[ECO "B47"]
[WhiteElo "1965"]
[BlackElo "2301"]
[Annotator "NA"]
[PlyCount "72"]
[EventType "team-tourn"]
[EventCountry "TUR"]
[SourceTitle "playchess.com"]
[Source "ChessBase"]
[SourceQuality "1"]
[TimeControl "40/5400+30:1800+30"]

1. e4 {[%emt 0:00:30]} c5 {[%emt 0:03:00]} 2. Nf3 {[%emt 0:00:30]} e6 {[%emt 0:00:00]} 3. d4 {[%emt 0:00:30]} cxd4 {[%emt 0:00:00]} 4. Nxd4 {[%emt 0:00:30]} Nc6 {[%emt 0:00:00]} 5. Nc3 {[%emt 0:01:30]} Qc7 {[%emt 0:00:00]} 6. Ndb5 {[%emt 0:03:30]} Qb8 {[%emt 0:01:30]} 7. Be3 {[%emt 0:00:30]} a6 {[%emt 0:00:00]} 8. Bb6 {[%emt 0:01:30]} axb5 {[%emt 0:00:00]} 9. Nxb5 {[%emt 0:00:30]} Bb4+ {[%emt 0:00:30]} 10. c3 {[%emt 0:00:00]} Ba5 {[%emt 0:00:30] B47: Sicilian: Taimanov: 5 Nc3 Qc7 6 f4, 6 g3 and 6 Be2} 11. Nc7+ {[%emt 0:00:00]} Qxc7 {[%emt 0:00:30]} 12. Bxc7 {[%emt 0:00:00]} Bxc7 {[%emt 0:00:00]} 13. Be2 {[%emt 0:06:00]} Nf6 {[%emt 0:00:00]} 14. Qc2 {[%emt 0:00:30]} O-O {[%emt 0:01:30]} 15. O-O {[%emt 0:01:30]} d5 {[%emt 0:00:30]} 16. exd5 {[%emt 0:02:30]} exd5 {[%emt 0:00:00]} 17. a3 $146 {[%emt 0:08:30]} ({Predecessor:} 17. a4 Be6 18. Bb5 {1-0 (42) Chumpitaz Carbajal,A (2163)-Molina,R (2464) Medellin 2017}) 17... Be6 {[%emt 0:02:00]} 18. Bd3 {[%emt 0:09:30]} g6 {[%emt 0:02:30] [%clk 1:27]} 19. f4 {[%emt 0:12:30]} Ng4 {[%emt 0:06:30]} 20. f5 {[%emt 0:03:30]} Ne3 {[%emt 0:06:30]} 21. Qb3 {[%emt 0:01:30]} Na5 {[%emt 0:13:30]} ({Much worse is} 21... Nxf1 $6 22. fxe6 Ne3 23. Qxb7 $11) 22. Qb5 {[%emt 0:03:30]} Nxf5 {[%emt 0:14:30]} 23. Bxf5 {[%emt 0:03:30]} Bxf5 {[%emt 0:00:30]} ({Better is} 23... gxf5 $17 24. Qc5 Be5) 24. Rxf5 {[%emt 0:04:30]} gxf5 {[%emt 0:00:30]} 25. Qxd5 {[%emt 0:00:00]} Nc6 {[%emt 0:01:30]} 26. Qxf5 {[%emt 0:00:00]} Ne5 {[%emt 0:00:30]} 27. h4 {[%emt 0:07:30]} f6 {[%emt 0:02:30]} 28. Qe6+ {[%emt 0:03:30]} Kh8 {[%emt 0:00:30]} 29. Rf1 {[%emt 0:00:00]} Rae8 {[%emt 0:01:30]} 30. Qb3 {[%emt 0:01:00]} b6 {[%emt 0:01:30]} 31. Qb5 {[%emt 0:02:30] [#]} Ng4 $1 {[%emt 0:13:30]} 32. Qd7 {[%emt 0:07:11]} Bh2+ {[%emt 0:00:30]} 33. Kh1 {[%emt 0:00:00]} Re4 {[%emt 0:07:30]} 34. g3 {[%emt 0:05:56]} Rfe8 {[%emt 0:04:28]} 35. Rf4 {[%emt 0:05:14]} (35. Rf3 $17) 35... Re1+ {[%emt 0:01:24]} 36. Kg2 {[%emt 0:01:08]} Rg1+ {[%emt 0:00:09]} 0-1

[Event "Turkey IS Bank Super League 2017"]
[Site "Darica-Kocaeli"]
[Date "2017.08.03"]
[Round "9"]
[White "Tirak, Mert"]
[Black "Sevgi, Volkan"]
[Result "1-0"]
[ECO "B16"]
[WhiteElo "1909"]
[BlackElo "2199"]
[Annotator "ChessBase"]
[PlyCount "165"]
[EventType "team-tourn"]
[EventCountry "TUR"]
[SourceTitle "playchess.com"]
[Source "ChessBase"]
[SourceQuality "1"]
[TimeControl "40/5400+30:1800+30"]

1. e4 {[%emt 0:01:30]} c6 {[%emt 0:01:00]} 2. d4 {[%emt 0:00:00]} d5 {[%emt 0:00:30]} 3. Nc3 {[%emt 0:00:00]} dxe4 {[%emt 0:00:30]} 4. Nxe4 {[%emt 0:00:30]} Nf6 {[%emt 0:00:00]} 5. Nxf6+ {[%emt 0:00:00]} gxf6 {[%emt 0:00:00]} 6. c3 {[%emt 0:08:00]} Bf5 {[%emt 0:00:00]} 7. g3 {[%emt 0:07:30]} Qd5 {[%emt 0:06:00]} 8. Nf3 {[%emt 0:02:30]} Nd7 {[%emt 0:01:30]} 9. Bg2 {[%emt 0:00:00]} Qc4 {[%emt 0:00:30]} 10. Qb3 {[%emt 0:12:00]} Qa6 {[%emt 0:06:30] [%clk 1:19]} 11. Be3 {[%emt 0:13:30]} Nb6 {[%emt 0:02:30]} 12. Nd2 {[%emt 0:09:30]} Bd3 {[%emt 0:05:30]} 13. O-O-O {[%emt 0:13:30]} e6 {[%emt 0:25:30]} 14. Bf1 {[%emt 0:11:39]} Bxf1 {[%emt 0:04:30]} 15. Rhxf1 {[%emt 0:00:41]} O-O-O {[%emt 0:00:30]} 16. Kb1 {[%emt 0:01:27]} Rd5 {[%emt 0:02:30]} 17. c4 {[%emt 0:03:32]} Ra5 {[%emt 0:00:30]} 18. Rc1 {[%emt 0:04:00]} Be7 {[%emt 0:03:30]} 19. Rfd1 {[%emt 0:02:23]} Rd8 {[%emt 0:01:30]} 20. Ne4 {[%emt 0:01:09]} Nd7 {[%emt 0:19:19]} 21. d5 {[%emt 0:02:14]} c5 {[%emt 0:00:44]} 22. f4 {[%emt 0:04:38]} Qb6 {[%emt 0:01:36]} 23. Qxb6 {[%emt 0:00:28]} axb6 {[%emt 0:00:59]} 24. dxe6 {[%emt 0:00:30]} fxe6 {[%emt 0:00:30]} 25. Nd6+ {[%emt 0:00:00]} Bxd6 {[%emt 0:00:00]} 26. Rxd6 {[%emt 0:00:08]} Re8 {[%emt 0:00:00]} 27. Rcd1 {[%emt 0:01:12]} Re7 {[%emt 0:00:00]} 28. Bd2 {[%emt 0:00:15]} Ra8 {[%emt 0:00:29]} 29. Bc3 {[%emt 0:00:13]} Kc7 {[%emt 0:00:00]} 30. b3 {[%emt 0:01:31]} Rae8 {[%emt 0:00:00]} 31. R6d3 {[%emt 0:00:23]} e5 {[%emt 0:00:00]} 32. fxe5 {[%emt 0:00:19]} fxe5 {[%emt 0:00:20]} 33. Re3 {[%emt 0:00:30]} e4 {[%emt 0:00:30]} 34. g4 {[%emt 0:00:30]} Rf8 {[%emt 0:00:30]} 35. g5 {[%emt 0:00:30]} Nb8 {[%emt 0:00:30]} 36. h4 {[%emt 0:00:30]} Rf5 {[%emt 0:00:30]} 37. Rde1 {[%emt 0:00:30]} Rf4 {[%emt 0:00:30]} 38. h5 {[%emt 0:00:00]} Rg4 {[%emt 0:06:07]} 39. g6 {[%emt 0:00:50]} hxg6 {[%emt 0:01:16]} 40. h6 {[%emt 0:00:00]} Nd7 {[%emt 0:02:40]} 41. Bg7 {[%emt 0:12:16]} Rh4 {[%emt 0:00:30]} 42. Rg1 {[%emt 0:01:01]} Rf7 {[%emt 0:04:30]} 43. Re2 {[%emt 0:03:37]} Nf8 {[%emt 0:13:30]} 44. Rge1 {[%emt 0:03:33]} Nh7 {[%emt 0:07:54]} 45. Rxe4 {[%emt 0:00:40]} Rxe4 {[%emt 0:00:30]} 46. Rxe4 {[%emt 0:00:00]} Kd7 {[%emt 0:00:00]} 47. Re2 {[%emt 0:02:41]} g5 {[%emt 0:02:24]} 48. Kb2 {[%emt 0:04:41]} g4 {[%emt 0:01:12]} 49. Ka3 {[%emt 0:03:10]} b5 {[%emt 0:09:26]} 50. cxb5 {[%emt 0:00:30]} b6 {[%emt 0:00:30]} 51. Rg2 {[%emt 0:00:30]} Rf4 {[%emt 0:00:30]} 52. Re2 {[%emt 0:03:00]} Rf5 {[%emt 0:01:25]} 53. Be5 {[%emt 0:00:45]} Rg5 {[%emt 0:02:24]} 54. Bf4 {[%emt 0:00:14]} Rf5 {[%emt 0:00:09]} 55. Be5 {[%emt 0:00:05]} Rg5 {[%emt 0:00:17]} 56. Bg3 {[%emt 0:00:19]} Rg6 {[%emt 0:00:00]} 57. Bf4 {[%emt 0:00:53]} Rf6 {[%emt 0:00:36]} 58. Bc1 {[%emt 0:00:28]} g3 {[%emt 0:01:04]} 59. Rg2 {[%emt 0:00:05]} Rf3 {[%emt 0:00:00]} 60. Bb2 {[%emt 0:00:43]} Ke6 {[%emt 0:00:33]} 61. Rg1 {[%emt 0:00:47]} Kf5 {[%emt 0:00:34]} 62. Bg7 {[%emt 0:00:10]} Re3 {[%emt 0:01:00]} 63. Ka4 {[%emt 0:01:02]} Re2 {[%emt 0:01:07]} 64. b4 {[%emt 0:00:10]} c4 {[%emt 0:01:25]} 65. Rxg3 {[%emt 0:00:41]} Rxa2+ {[%emt 0:01:03]} 66. Ra3 {[%emt 0:00:03]} Rd2 {[%emt 0:00:17]} 67. Rc3 {[%emt 0:00:12]} Ra2+ {[%emt 0:00:57]} 68. Ra3 {[%emt 0:00:05]} Rd2 {[%emt 0:00:34]} 69. Rc3 {[%emt 0:02:07]} Ra2+ {[%emt 0:00:34]} 70. Ra3 {[%emt 0:00:05]} Re2 {[%emt 0:00:31]} 71. Bd4 {[%emt 0:00:22]} Re6 {[%emt 0:00:32]} 72. Rc3 {[%emt 0:00:21]} Rxh6 {[%emt 0:00:29]} 73. Rxc4 {[%emt 0:00:10]} Rh4 {[%emt 0:00:24]} 74. Kb3 {[%emt 0:00:12]} Nf8 {[%emt 0:00:30]} 75. Bxb6 {[%emt 0:00:28]} Rxc4 {[%emt 0:00:32]} 76. Kxc4 {[%emt 0:00:05]} Ke6 {[%emt 0:00:00]} 77. Bc5 {[%emt 0:00:19]} Nd7 {[%emt 0:00:26]} 78. b6 {[%emt 0:00:09]} Nb8 {[%emt 0:01:02]} 79. b7 {[%emt 0:00:49]} Kd7 {[%emt 0:00:26]} 80. Ba7 {[%emt 0:00:04]} Kc7 {[%emt 0:00:05]} 81. Bxb8+ {[%emt 0:00:05]} Kxb8 {[%emt 0:00:10]} 82. Kc5 {[%emt 0:00:04]} Kc7 {[%emt 0:00:04]} 83. b8=Q+ {[%emt 0:00:10]} 1-0

[Event "Turkey IS Bank Super League 2017"]
[Site "Darica-Kocaeli"]
[Date "2017.08.03"]
[Round "9"]
[White "Ayazmali, Gizem"]
[Black "Yurdakul, Didem Nuray"]
[Result "1-0"]
[ECO "A07"]
[WhiteElo "1849"]
[BlackElo "1697"]
[Annotator "NA"]
[PlyCount "91"]
[EventType "team-tourn"]
[EventCountry "TUR"]
[SourceTitle "playchess.com"]
[Source "ChessBase"]
[SourceQuality "1"]
[TimeControl "40/5400+30:1800+30"]

1. Nf3 {[%emt 0:00:30]} d5 {[%emt 0:01:00]} 2. g3 {[%emt 0:00:30]} c6 {[%emt 0:00:30]} 3. Bg2 {[%emt 0:00:00]} Bg4 {[%emt 0:00:30]} 4. O-O {[%emt 0:02:00]} Nd7 {[%emt 0:01:30]} 5. d4 {[%emt 0:01:30]} Ngf6 {[%emt 0:01:30]} 6. c4 {[%emt 0:05:30]} e6 {[%emt 0:03:30]} 7. Bf4 {[%emt 0:04:30]} Be7 {[%emt 0:02:30]} 8. Nbd2 {[%emt 0:03:30]} O-O {[%emt 0:05:30]} 9. h3 {[%emt 0:07:30]} Bh5 $11 {[%emt 0:07:30] [%clk 1:11] LiveBook: 4 Games} 10. g4 {[%emt 0:06:30]} Bg6 {[%emt 0:00:30]} 11. Ne5 {[%emt 0:01:30]} Nxe5 {[%emt 0:11:30]} 12. dxe5 {[%emt 0:00:30]} Nd7 {[%emt 0:00:30]} 13. cxd5 {[%emt 0:02:30]} exd5 {[%emt 0:00:30]} 14. Bg3 {[%emt 0:04:30]} Bh4 {[%emt 0:10:30]} 15. Bxh4 {[%emt 0:05:30]} Qxh4 {[%emt 0:00:00]} 16. f4 {[%emt 0:00:30]} f5 {[%emt 0:08:00]} 17. g5 {[%emt 0:14:30]} Nc5 {[%emt 0:08:30]} 18. Rc1 {[%emt 0:04:30]} Ne6 {[%emt 0:05:30]} 19. e3 {[%emt 0:05:30]} h6 {[%emt 0:04:30]} 20. Nf3 {[%emt 0:03:30]} Qg3 {[%emt 0:02:30]} 21. gxh6 {[%emt 0:00:30]} gxh6 {[%emt 0:00:30]} 22. Qe1 {[%emt 0:01:30]} Qxe1 {[%emt 0:00:30]} 23. Rfxe1 {[%emt 0:00:30]} Kf7 {[%emt 0:00:30]} 24. Kf2 {[%emt 0:03:30]} Rg8 {[%emt 0:02:30]} 25. Bf1 {[%emt 0:02:32]} Rg7 {[%emt 0:02:30]} 26. Bd3 {[%emt 0:00:53]} Rag8 {[%emt 0:04:26]} 27. Rg1 {[%emt 0:02:15]} Bh7 {[%emt 0:03:13]} 28. Rxg7+ {[%emt 0:00:10]} Rxg7 {[%emt 0:01:11]} 29. Nh4 {[%emt 0:00:53]} d4 {[%emt 0:00:30]} 30. Nxf5 {[%emt 0:02:27]} dxe3+ {[%emt 0:03:10]} 31. Kxe3 {[%emt 0:00:13]} Bxf5 {[%emt 0:01:06]} 32. Bxf5 {[%emt 0:00:01]} Rg2 {[%emt 0:00:47]} 33. Rc2 {[%emt 0:00:44]} Rg3+ {[%emt 0:01:32]} 34. Kf2 {[%emt 0:00:25]} Rg7 {[%emt 0:01:21]} 35. Bxe6+ {[%emt 0:00:44]} Kxe6 {[%emt 0:00:30]} 36. Rd2 {[%emt 0:00:00]} Rf7 {[%emt 0:05:06]} 37. Rd6+ {[%emt 0:00:09]} Ke7 {[%emt 0:00:33]} 38. Kf3 {[%emt 0:00:08]} h5 {[%emt 0:01:09]} 39. Rh6 {[%emt 0:00:10]} Rg7 {[%emt 0:00:46]} 40. Rxh5 {[%emt 0:00:00]} Rg1 {[%emt 0:01:10]} 41. Rh7+ {[%emt 0:01:46]} Ke6 {[%emt 0:00:00]} 42. Rxb7 {[%emt 0:00:30]} Rf1+ {[%emt 0:00:00]} 43. Ke3 {[%emt 0:00:00]} Rh1 {[%emt 0:01:30]} 44. Rxa7 {[%emt 0:00:00]} Rxh3+ {[%emt 0:00:00]} 45. Ke4 {[%emt 0:00:30]} Rh5 {[%emt 0:01:00]} 46. f5+ {[%emt 0:00:30]} 1-0

[Event "Turkey IS Bank Super League 2017"]
[Site "Darica-Kocaeli"]
[Date "2017.08.03"]
[Round "9"]
[White "Kargaci, Humeyra"]
[Black "Sade, Defne"]
[Result "0-1"]
[ECO "D18"]
[WhiteElo "1737"]
[BlackElo "1654"]
[Annotator "NA"]
[PlyCount "64"]
[EventType "team-tourn"]
[EventCountry "TUR"]
[SourceTitle "playchess.com"]
[Source "ChessBase"]
[SourceQuality "1"]
[TimeControl "40/5400+30:1800+30"]

1. d4 {[%emt 0:00:30]} d5 {[%emt 0:01:00]} 2. Nf3 {[%emt 0:00:30]} Nf6 {[%emt 0:00:30]} 3. c4 {[%emt 0:00:30]} c6 {[%emt 0:00:00]} 4. Nc3 {[%emt 0:00:30]} dxc4 {[%emt 0:00:00]} 5. a4 {[%emt 0:00:30]} Bf5 {[%emt 0:00:30]} 6. e3 {[%emt 0:00:00]} e6 {[%emt 0:00:30]} 7. Bxc4 {[%emt 0:00:00]} Bb4 {[%emt 0:00:00]} 8. Qb3 {[%emt 0:00:30]} Qe7 {[%emt 0:01:00]} 9. Bd2 {[%emt 0:00:30]} a5 {[%emt 0:00:30]} 10. O-O {[%emt 0:00:30]} O-O {[%emt 0:00:30]} 11. Rfe1 {[%emt 0:02:30]} Bg6 {[%emt 0:00:30]} 12. Ne2 {[%emt 0:01:30]} Na6 {[%emt 0:04:30]} 13. Bxb4 {[%emt 0:02:30]} Nxb4 {[%emt 0:01:30]} 14. Rac1 {[%emt 0:00:00]} b5 {[%emt 0:12:30]} 15. axb5 {[%emt 0:02:00]} cxb5 {[%emt 0:00:30]} 16. Bxb5 {[%emt 0:00:00]} Rfb8 {[%emt 0:00:30]} 17. Nc3 {[%emt 0:03:00]} Nd3 {[%emt 0:02:30]} 18. Ne5 {[%emt 0:08:30]} Nxc1 {[%emt 0:01:30]} 19. Rxc1 {[%emt 0:00:00]} Qb4 {[%emt 0:00:30] [%clk 1:11]} 20. Qc4 {[%emt 0:17:00]} Qxb2 {[%emt 0:14:30]} 21. Rf1 {[%emt 0:00:30]} Nd5 {[%emt 0:06:30]} 22. Bc6 {[%emt 0:17:30]} Nxc3 {[%emt 0:11:30]} 23. Bxa8 {[%emt 0:01:30]} Rxa8 {[%emt 0:00:30]} 24. Qc6 {[%emt 0:02:30]} Be4 {[%emt 0:01:30]} 25. Qc7 {[%emt 0:00:30]} Ne2+ {[%emt 0:00:30]} 26. Kh1 {[%emt 0:00:00]} Qb7 {[%emt 0:01:30]} 27. Qxb7 {[%emt 0:00:00]} Bxb7 {[%emt 0:00:30]} 28. Ra1 {[%emt 0:00:30]} Bd5 {[%emt 0:00:30]} 29. Nd7 {[%emt 0:00:30]} a4 {[%emt 0:04:30]} 30. Nb6 {[%emt 0:01:30]} Ra6 {[%emt 0:00:30]} 31. Nxa4 {[%emt 0:00:30]} Nc3 {[%emt 0:01:30]} 32. Rc1 {[%emt 0:00:30]} Rxa4 {[%emt 0:00:00]} 0-1

[Event "Turkey IS Bank Super League 2017"]
[Site "Darica-Kocaeli"]
[Date "2017.08.03"]
[Round "9"]
[White "Aluc, Bulut Evrim"]
[Black "Avramidou, Anastasia"]
[Result "1-0"]
[ECO "D05"]
[WhiteElo "1699"]
[BlackElo "2247"]
[Annotator "NA"]
[PlyCount "89"]
[EventType "team-tourn"]
[EventCountry "TUR"]
[SourceTitle "playchess.com"]
[Source "ChessBase"]
[SourceQuality "1"]
[TimeControl "40/5400+30:1800+30"]

1. d4 {[%emt 0:00:30]} Nf6 {[%emt 0:01:00]} 2. Nf3 {[%emt 0:00:30]} e6 {[%emt 0:00:30]} 3. e3 {[%emt 0:00:00]} d5 {[%emt 0:00:30]} 4. b3 {[%emt 0:00:00]} Bb4+ {[%emt 0:00:30] D05: Colle System with ...e6} (4... b6 5. Bd3 Bb7 6. O-O Bd6 7. c4 O-O 8. Bb2 Nbd7 9. Nc3 a6 10. Qe2 Ne4 11. Rfd1 Qe7 12. Rac1 f5 13. h3 Rf7 14. Bb1 Raf8 15. a4 Rf6 16. Ne5 Nxe5 17. dxe5 Bxe5 18. Nxe4 Bxb2 19. Nxf6+ Qxf6 {1-0 (69) Bacrot,E (2695)-Cornette,M (2586) chess.com INT 2017}) 5. c3 {[%emt 0:01:30]} Be7 {[%emt 0:01:30]} 6. Bb2 {[%emt 0:01:30]} O-O {[%emt 0:00:30]} 7. Bd3 {[%emt 0:01:30]} b6 {[%emt 0:00:30]} 8. Nbd2 {[%emt 0:00:30]} Ba6 $146 {[%emt 0:01:30]} ({Predecessor:} 8... c5 9. O-O Ba6 10. c4 Nc6 11. Rc1 Rc8 12. Re1 Qc7 13. Ne5 Nb4 14. Bb1 dxc4 15. bxc4 Rfd8 16. Qa4 Bb7 17. a3 Nc6 18. Ndf3 {1-0 (26) Ivic,R-Stanetzek,C Cologne 1991}) 9. c4 {[%emt 0:12:30]} c5 {[%emt 0:07:30]} 10. Qe2 {[%emt 0:06:30]} Nc6 {[%emt 0:03:30]} 11. O-O {[%emt 0:00:30]} Rc8 {[%emt 0:01:30]} 12. a3 {[%emt 0:00:30]} Na5 {[%emt 0:07:30] [%clk 1:10]} 13. dxc5 {[%emt 0:05:30]} bxc5 {[%emt 0:04:30]} (13... dxc4 $11 14. bxc4 Rxc5) 14. Rab1 {[%emt 0:09:30]} Bb7 {[%emt 0:11:30]} 15. Ng5 {[%emt 0:15:30]} h6 {[%emt 0:07:30]} 16. Nh3 {[%emt 0:08:30]} Qd7 {[%emt 0:08:30]} 17. f3 {[%emt 0:07:30]} Rfd8 {[%emt 0:03:30]} 18. Nf2 {[%emt 0:01:30]} Nc6 {[%emt 0:05:30]} 19. f4 {[%emt 0:07:09]} Na5 {[%emt 0:07:30]} 20. Rfd1 {[%emt 0:04:48]} Qc7 {[%emt 0:06:21]} (20... Nc6 $1 $11) 21. Be5 {[%emt 0:01:33]} Qb6 {[%emt 0:00:05]} 22. Ng4 $14 {[%emt 0:02:40]} Qc6 {[%emt 0:07:58]} 23. Nxf6+ {[%emt 0:00:30]} Bxf6 {[%emt 0:00:30]} 24. Bxf6 {[%emt 0:00:30]} gxf6 {[%emt 0:01:40]} 25. Qh5 {[%emt 0:02:47]} Kf8 {[%emt 0:03:31]} 26. cxd5 {[%emt 0:02:57]} exd5 {[%emt 0:03:29]} 27. e4 {[%emt 0:01:43]} d4 {[%emt 0:03:30]} 28. Nf3 {[%emt 0:01:40]} Ke7 {[%emt 0:00:36]} 29. e5 {[%emt 0:00:25]} Rg8 {[%emt 0:00:50]} 30. Kh1 {[%emt 0:01:56]} f5 {[%emt 0:01:04]} 31. Bxf5 {[%emt 0:00:20]} Rcf8 {[%emt 0:00:28]} 32. Re1 {[%emt 0:00:26]} Rg7 {[%emt 0:00:32]} 33. b4 {[%emt 0:01:03]} cxb4 {[%emt 0:00:46]} 34. Rxb4 {[%emt 0:00:29]} Qc3 {[%emt 0:00:38]} 35. Qh4+ {[%emt 0:01:28]} Ke8 {[%emt 0:00:17]} 36. Qh5 {[%emt 0:00:33]} Rxg2 {[%emt 0:00:40]} 37. Rxb7 {[%emt 0:00:19]} Nxb7 {[%emt 0:00:14]} 38. e6 {[%emt 0:00:21]} Re2 {[%emt 0:00:49]} 39. Rxe2 {[%emt 0:00:20]} Qc1+ {[%emt 0:00:50]} 40. Re1 {[%emt 0:00:00]} Qxf4 {[%emt 0:30:22]} 41. exf7+ {[%emt 0:00:33]} Kd8 {[%emt 0:00:30]} 42. Re8+ {[%emt 0:00:30]} Kc7 {[%emt 0:00:30]} 43. Rxf8 {[%emt 0:00:30]} Qc1+ {[%emt 0:00:30]} 44. Ng1 {[%emt 0:01:30]} Nd6 {[%emt 0:00:00]} 45. Rc8+ {[%emt 0:00:30]} 1-0